fUST/lending_fUST_20260214
["ID","MTS","AMOUNT","RATE_DAILY","PERIOD"]
[405355703,1771068786247,-500.0,0.00023998,2]
[405355704,1771068786273,-454.00420889,0.00023998,2]
[405355705,1771068786297,-625.83104542,0.00023998,2]
[405355706,1771068786323,-500.0,0.00023998,2]
[405355707,1771068786348,-500.0,0.00023998,2]
[405355708,1771068786373,-500.0,0.00023998,2]
[405355709,1771068786398,-500.0,0.00023998,2]
[405355710,1771068786424,-500.0,0.00023998,2]
[405355711,1771068786449,-500.0,0.00023998,2]
[405355712,1771068786475,-500.0,0.00023998,2]
[405355713,1771068786500,-346.90961393,0.00023998,2]
[405355714,1771068786525,-500.0,0.00023998,2]
[405355715,1771068786549,-502.00812659,0.00023998,2]
[405355716,1771068786573,-500.0,0.00023998,2]
[405355717,1771068786599,-500.0,0.00023998,2]
[405355718,1771068786625,-500.0,0.00023998,2]
[405355719,1771068786654,-500.0,0.00023998,2]
[405355720,1771068786682,-500.0,0.00023998,2]
[405355721,1771068786707,-500.0,0.00023998,2]
[405355722,1771068786731,-500.0,0.00023998,2]
[405355723,1771068786757,-500.0,0.00023998,2]
[405355724,1771068786782,-500.0,0.00023998,2]
[405355725,1771068786809,-500.0,0.00023998,2]
[405355726,1771068786833,-500.0,0.00023998,2]
[405355727,1771068786865,-500.0,0.00023998,2]
[405355728,1771068786893,-500.0,0.00023998,2]
[405355729,1771068786919,-500.0,0.00023998,2]
[405355730,1771068786943,-629.74944509,0.00023998,2]
[405355731,1771068786969,-500.0,0.00023998,2]
[405355732,1771068786994,-500.0,0.00023998,2]
[405355733,1771068787019,-500.0,0.00023998,2]
[405355734,1771068787043,-500.0,0.00023998,2]
[405355735,1771068787069,-500.0,0.00023998,2]
[405355736,1771068787093,-500.0,0.00023998,2]
[405355737,1771068787118,-500.0,0.00023998,2]
[405355738,1771068787142,-500.0,0.00023998,2]
[405355739,1771068787168,-500.0,0.00023998,2]
[405355740,1771068787193,-321.51071113,0.00023998,2]
[405355741,1771068846057,649.21380901,0.00013273,2]
[405355742,1771068850401,2718.31907004,0.00024,2]
[405355743,1771068910190,505.76309098,0.00013273,2]
[405355744,1771068914490,500.0,0.00013273,2]
[405355745,1771068914548,673.82189964,0.00013821,2]
[405355746,1771068921138,197.13397689,0.00013273,2]
[405355747,1771068923175,502.19942786,0.00013699,2]
[405355748,1771068968828,184.46023785,0.00013821,2]
[405355749,1771068968854,815.53976215,0.00013821,2]
[405355750,1771068968884,500.0,0.00013273,2]
[405355751,1771068968918,1017.6505888,0.00014368,2]
[405355752,1771068974758,213.15057427,0.00013273,2]
[405355753,1771068979589,169.17271878,0.00013273,2]
[405355754,1771068983110,1000.0,0.00013821,2]
[405355755,1771068983176,500.0,0.00013273,2]
[405355756,1771068983221,549.07885264,0.00014368,2]
[405355757,1771068983268,500.0,0.00013699,2]
[405355758,1771068983333,1022.22831055,0.00014247,2]
[405355762,1771069578080,514.2811413,0.00013699,2]
[405355763,1771069589408,412.42222919,0.00013273,2]
[405355765,1771069674581,5000.0,0.0002,2]
[405355766,1771069690127,1943.67151068,0.0002,2]
[405355767,1771069698184,1221.00694229,0.0002,2]
[405355783,1771069831835,-265.12851607,0.00020225,2]
[405355785,1771069831844,-102.70028174,0.00020532,2]
[405355790,1771069831889,-47.29971826,0.00020532,2]
[405355792,1771069831903,-150.86384189,0.00021918,2]
[405355794,1771069831912,-297.8649857,0.00022331,2]
[405355796,1771069831922,-177.0,0.00022532,2]
[405355797,1771069831930,-250.0,0.00023221,2]
[405355799,1771069831940,-250.0,0.00023261,2]
[405355801,1771069831949,-500.0,0.00023835,2]
[405355803,1771069831959,-159.16739379,0.00023835,2]
[405355804,1771069831968,-1200.0,0.00023835,2]
[405355806,1771069831978,-1238.03786454,0.00023836,2]
[405355816,1771069837978,-5000.0,0.00023836,2]
[405355817,1771069838034,-5174.33382574,0.00023836,2]
[405355824,1771069840035,-1125.34589103,0.00023836,2]
[405355826,1771069840089,-7526.21984714,0.00023836,2]
[405355835,1771069845392,-455.52641478,0.00023836,2]
[405355836,1771069845404,-3152.7,0.00023836,2]
[405355839,1771069845961,-5086.98716079,0.00023836,2]
[405355840,1771069845972,-12018.86326878,0.00023837,2]
[405355841,1771069846169,-354.83147644,0.00023837,2]
[405355845,1771070462781,2000.0,0.000301,120]
[405355846,1771070537926,-251.24918292,0.00022355,2]
[405355847,1771070537951,-1842.71402846,0.00022355,2]
[405355848,1771070567390,-251.24918292,0.00022517,2]
[405355849,1771071008073,1507.68,0.000156,2]
[405355850,1771071008739,1507.68,0.000156,2]
[405355851,1771071009321,1507.68,0.000157,2]
[405355852,1771071009789,1507.68,0.000157,2]
[405355853,1771071010359,1507.68,0.000157,2]
[405355854,1771071010910,1507.68,0.000158,2]
[405355855,1771071011454,575.71736935,0.000158,2]
[405355856,1771071011480,931.96263065,0.000158,2]
[405355857,1771071012005,1507.68,0.000158,2]
[405355858,1771071012551,1507.68,0.000159,2]
[405355859,1771071013107,1507.68,0.000159,2]
[405355860,1771071013583,1507.68,0.000159,2]
[405355861,1771071014141,1507.68,0.00016,2]
[405355862,1771071014712,1507.68,0.00016,2]
[405355863,1771071015191,1507.68,0.00016,2]
[405355864,1771071015756,1507.68,0.00016,2]
[405355865,1771071016219,1507.68,0.000161,2]
[405355866,1771071016783,1507.68,0.000161,2]
[405355867,1771071017259,1507.68,0.000161,2]
[405355868,1771071017817,1507.68,0.000162,2]
[405355869,1771071018300,1507.68,0.000162,2]
[405355870,1771071018885,1507.68,0.000162,2]
[405355871,1771071019352,1507.68,0.000163,2]
[405355872,1771071019814,1507.68,0.000163,2]
[405355873,1771071020372,1507.68,0.000163,2]
[405355874,1771071020873,1507.68,0.000164,2]
[405355875,1771071021337,1507.68,0.000164,2]
[405355876,1771071021892,1507.68,0.000164,2]
[405355877,1771071022367,1507.68,0.000165,2]
[405355878,1771071022821,1507.68,0.000165,2]
[405355879,1771071023396,1507.68,0.000165,2]
[405355880,1771071023958,1507.68,0.000166,2]
[405355881,1771071024512,1507.68,0.000166,2]
[405355882,1771071025828,1507.68,0.000166,2]
[405355883,1771071026461,1507.68,0.000167,2]
[405355884,1771071026929,1507.68,0.000167,2]
[405355885,1771071027649,1507.68,0.000167,2]
[405355886,1771071028404,1507.68,0.000167,2]
[405355887,1771071029001,1507.68,0.000168,2]
[405355888,1771071029553,1507.68,0.000168,2]
[405355889,1771071030106,1507.68,0.000168,2]
[405355890,1771071030664,1507.68,0.000169,2]
[405355891,1771071031132,1507.68,0.000169,2]
[405355892,1771071031707,1507.68,0.000169,2]
[405355905,1771071032385,1507.68,0.00017,2]
[405355906,1771071032749,1507.68,0.00017,2]
[405355907,1771071033260,1507.68,0.00017,2]
[405355908,1771071034793,1507.68,0.000171,2]
[405355909,1771071035360,1507.68,0.000171,2]
[405355910,1771071035910,1507.68,0.000171,2]
[405355911,1771071036789,1507.68,0.000172,2]
[405355920,1771071038180,-624.82407471,0.00021768,2]
[405355921,1771071038190,-300.0,0.00021987,2]
[405355922,1771071038202,-300.0,0.00021987,2]
[405355923,1771071038215,-65.5363133,0.00021987,2]
[405355924,1771071038234,-234.4636867,0.00021987,2]
[405355925,1771071038243,-300.0,0.00021987,2]
[405355926,1771071038255,-1200.0,0.00021987,2]
[405355927,1771071038265,-500.0,0.00021987,2]
[405355928,1771071038275,-500.0,0.00021987,2]
[405355929,1771071038285,-301.80453846,0.00021987,2]
[405355930,1771071038295,-500.0,0.00021987,2]
[405355931,1771071038305,-196.98238969,0.00021987,2]
[405355932,1771071038315,-500.0,0.00021987,2]
[405355933,1771071038325,-500.0,0.00021987,2]
[405355934,1771071038336,-500.0,0.00021987,2]
[405355935,1771071038346,-500.0,0.00021987,2]
[405355936,1771071038356,-500.0,0.00021987,2]
[405355937,1771071038366,-500.0,0.00021987,2]
[405355938,1771071038376,-500.0,0.00021987,2]
[405355939,1771071038386,-500.0,0.00021987,2]
[405355940,1771071038396,-500.0,0.00021987,2]
[405355941,1771071038408,-629.2413393,0.00021987,2]
[405355942,1771071038418,-500.0,0.00021987,2]
[405355943,1771071038428,-500.0,0.00021987,2]
[405355944,1771071038438,-500.0,0.00021987,2]
[405355945,1771071038448,-424.53217139,0.00021987,2]
[405355946,1771071038459,-500.0,0.00021987,2]
[405355947,1771071038469,-500.0,0.00021987,2]
[405355948,1771071038479,-500.0,0.00021987,2]
[405355949,1771071038489,-500.0,0.00021987,2]
[405355950,1771071038499,-500.0,0.00021987,2]
[405355951,1771071038510,-500.0,0.00021987,2]
[405355952,1771071038520,-500.0,0.00021987,2]
[405355953,1771071038530,-500.0,0.00021987,2]
[405355954,1771071038539,-500.0,0.00021987,2]
[405355955,1771071038549,-500.0,0.00021987,2]
[405355956,1771071038560,-500.0,0.00021987,2]
[405355957,1771071038570,-500.0,0.00021987,2]
[405355958,1771071038580,-500.0,0.00021987,2]
[405355959,1771071038589,-500.0,0.00021987,2]
[405355960,1771071038599,-500.0,0.00021987,2]
[405355961,1771071038609,-500.0,0.00021987,2]
[405355962,1771071038620,-500.0,0.00021987,2]
[405355963,1771071038630,-500.0,0.00021987,2]
[405355964,1771071038640,-500.0,0.00021987,2]
[405355965,1771071038650,-500.0,0.00021987,2]
[405355966,1771071038664,-500.0,0.00021987,2]
[405355967,1771071038676,-500.0,0.00021987,2]
[405355968,1771071038686,-500.0,0.00021987,2]
[405355969,1771071038696,-500.0,0.00021987,2]
[405355970,1771071038706,-500.0,0.00021987,2]
[405355971,1771071038716,-500.0,0.00021987,2]
[405355972,1771071038726,-500.0,0.00021987,2]
[405355973,1771071038736,-500.0,0.00021987,2]
[405355974,1771071038746,-500.0,0.00021987,2]
[405355975,1771071038757,-500.0,0.00021987,2]
[405355976,1771071038771,-500.0,0.00021987,2]
[405355977,1771071038785,-633.69103024,0.00021987,2]
[405355978,1771071038796,-500.0,0.00021987,2]
[405355979,1771071038807,-500.0,0.00021987,2]
[405355980,1771071038817,-500.0,0.00021987,2]
[405355981,1771071038828,-500.0,0.00021987,2]
[405355982,1771071038837,-500.0,0.00021987,2]
[405355983,1771071038847,-500.0,0.00021987,2]
[405355984,1771071038857,-162.0551051,0.00021987,2]
[405356521,1771071046287,-337.9448949,0.00021987,2]
[405356522,1771071046296,-500.0,0.00021987,2]
[405356523,1771071046305,-500.0,0.00021987,2]
[405356524,1771071046314,-500.0,0.00021987,2]
[405356525,1771071046323,-500.0,0.00021987,2]
[405356526,1771071046332,-500.0,0.00021987,2]
[405356532,1771071046457,-491.44366964,0.00021987,2]
[405356533,1771071046466,-500.0,0.00021987,2]
[405356534,1771071046475,-500.0,0.00021987,2]
[405356535,1771071046483,-500.0,0.00021987,2]
[405356536,1771071046492,-500.0,0.00021987,2]
[405356537,1771071046501,-500.0,0.00021987,2]
[405356538,1771071046512,-500.0,0.00021987,2]
[405356539,1771071046521,-500.0,0.00021987,2]
[405356540,1771071046530,-500.0,0.00021987,2]
[405356541,1771071046538,-500.0,0.00021987,2]
[405356542,1771071046548,-500.0,0.00021987,2]
[405356543,1771071046557,-500.0,0.00021987,2]
[405356544,1771071046567,-500.0,0.00021987,2]
[405356545,1771071046576,-500.0,0.00021987,2]
[405356546,1771071046587,-500.0,0.00021987,2]
[405356547,1771071046596,-500.0,0.00021987,2]
[405356548,1771071046606,-317.44762401,0.00021987,2]
[405356549,1771071046615,-500.0,0.00021987,2]
[405356550,1771071046625,-500.0,0.00021987,2]
[405356551,1771071046635,-500.0,0.00021987,2]
[405356552,1771071046645,-500.0,0.00021987,2]
[405356553,1771071046654,-500.0,0.00021987,2]
[405356554,1771071046664,-500.0,0.00021987,2]
[405356555,1771071046673,-10000.0,0.00021988,2]
[405356556,1771071046683,-150.0,0.0002214,2]
[405356557,1771071046692,-603.99988691,0.00022414,2]
[405356558,1771071046702,-270.45,0.00022506,10]
[405356559,1771071046711,-37398.51329499,0.00022516,2]
[405356560,1771071046802,-1000.49826,0.00022516,2]
[405356561,1771071046812,-3127.22406338,0.00022516,2]
[405356596,1771071282351,5000.0,0.000198,2]
[405356597,1771071298080,5000.0,0.000198,2]
[405356598,1771071305867,661.72203831,0.000198,2]
[405356600,1771071320904,5000.0,0.000198,2]
[405356601,1771071542886,242.3167,0.00019689,2]
[405356695,1771072238383,-1977.22738769,0.000199,2]
[405356696,1771072238394,-119.92417816,0.00019999,2]
[405356703,1771072240504,-1080.07582184,0.00019999,2]
[405356704,1771072240514,-313.61180641,0.0002,5]
[405356705,1771072240525,-8606.18900039,0.0002,5]
[405356724,1771072246310,-435.9558874,0.0002,5]
[405356725,1771072246322,-300.0,0.00020204,2]
[405356726,1771072246331,-300.0,0.00020204,2]
[405356727,1771072246341,-300.0,0.00020204,2]
[405356728,1771072246350,-300.0,0.00020204,2]
[405356729,1771072246360,-300.0,0.00020204,2]
[405356730,1771072246369,-150.0,0.00020306,2]
[405356731,1771072246378,-500.0,0.0002061,2]
[405356732,1771072246388,-500.0,0.0002061,2]
[405356733,1771072246397,-158.28135238,0.0002061,2]
[405356734,1771072246408,-500.0,0.0002061,2]
[405356735,1771072246419,-181.02681548,0.0002061,2]
[405356736,1771072246429,-500.0,0.0002061,2]
[405356737,1771072246440,-500.0,0.0002061,2]
[405356738,1771072246451,-500.0,0.0002061,2]
[405356739,1771072246461,-450.96512253,0.0002061,2]
[405356740,1771072246472,-500.0,0.0002061,2]
[405356741,1771072246482,-500.0,0.0002061,2]
[405356742,1771072246493,-500.0,0.0002061,2]
[405356743,1771072246508,-500.0,0.0002061,2]
[405356744,1771072246519,-500.0,0.0002061,2]
[405356745,1771072246529,-500.0,0.0002061,2]
[405356746,1771072246539,-500.0,0.0002061,2]
[405356747,1771072246548,-500.0,0.0002061,2]
[405356748,1771072246558,-500.0,0.0002061,2]
[405356749,1771072246570,-500.0,0.0002061,2]
[405356750,1771072246579,-500.0,0.0002061,2]
[405356751,1771072246589,-262.19203035,0.0002061,2]
[405356752,1771072246599,-500.0,0.0002061,2]
[405356753,1771072246608,-500.0,0.0002061,2]
[405356754,1771072246618,-500.0,0.0002061,2]
[405356755,1771072246627,-500.0,0.0002061,2]
[405356756,1771072246636,-500.0,0.0002061,2]
[405356757,1771072246646,-500.0,0.0002061,2]
[405356758,1771072246655,-500.0,0.0002061,2]
[405356759,1771072246664,-500.0,0.0002061,2]
[405356760,1771072246674,-500.0,0.0002061,2]
[405356761,1771072246683,-500.0,0.0002061,2]
[405356762,1771072246693,-500.0,0.0002061,2]
[405356763,1771072246702,-500.0,0.0002061,2]
[405356764,1771072246712,-500.0,0.0002061,2]
[405356765,1771072246721,-500.0,0.0002061,2]
[405356766,1771072246731,-500.0,0.0002061,2]
[405356767,1771072246741,-500.0,0.0002061,2]
[405356769,1771072246751,-470.23375704,0.0002061,2]
[405356770,1771072246761,-5000.0,0.00020611,2]
[405356771,1771072246770,-559.61879325,0.00020802,5]
[405356772,1771072246780,-522.60781871,0.00020819,2]
[405356774,1771072246789,-27768.43496875,0.0002082,2]
[405356776,1771072246818,-10487.62008081,0.0002082,2]
[405356777,1771072320110,-1797.406934,0.00020404,2]
[405356778,1771072366849,1429.72293454,0.00019779,5]
[405356783,1771072524612,300.0,0.00013673,2]
[405356784,1771072524645,414.58196054,0.00014221,2]
[405356785,1771072568058,500.0,0.00013273,2]
[405356786,1771072568779,500.0,0.00013273,2]
[405356787,1771072585218,579.93346192,0.00013699,2]
[405356788,1771072625033,500.0,0.00013273,2]
[405356789,1771072630099,502.97727479,0.00013273,2]
[405356790,1771072630155,502.38190988,0.00013273,2]
[405356791,1771072631939,500.0,0.00013273,2]
[405356792,1771072632732,500.0,0.00013273,2]
[405356793,1771072684858,552.82428118,0.00013699,2]
[405356794,1771072685404,506.63066938,0.00013273,2]
[405356795,1771072751041,500.0,0.00013699,2]
[405356796,1771072790447,1157.60261,0.00019728,2]
[405356797,1771072814111,503.440087,0.00013699,2]
[405356798,1771072817089,500.0,0.00013699,2]
[405356799,1771072817125,1000.0,0.00014247,2]
[405356800,1771072817187,410.03714794,0.00014795,2]
[405356801,1771072821524,502.01316909,0.00013699,2]
[405356802,1771072823341,509.01990237,0.00013699,2]
[405356803,1771072825233,504.11395649,0.00013699,2]
[405356804,1771072825272,500.0,0.00013273,2]
[405356805,1771072828158,505.43019717,0.00013699,2]
[405356806,1771072828320,502.33098679,0.00013699,2]
[405356807,1771072829587,511.20583647,0.00013273,2]
[405356808,1771072830039,192.32066582,0.00013699,2]
[405356809,1771072830850,500.0,0.00013273,2]
[405356810,1771072834646,500.5549585,0.00013699,2]
[405356814,1771072849983,5000.0,0.000198,2]
[405356815,1771072850317,3302.524116,0.0001966,2]
[405356816,1771072868553,331.90442977,0.00013273,2]
[405356817,1771072868937,500.0,0.00013273,2]
[405356818,1771072868966,1000.0,0.00013821,2]
[405356819,1771072868993,413.68938279,0.00014916,2]
[405356820,1771072869034,1500.0,0.00014368,2]
[405356821,1771072870650,503.02878083,0.00013273,2]
[405356822,1771072872269,5000.0,0.000198,2]
[405356823,1771072873402,501.69468888,0.00013273,2]
[405356824,1771072877086,504.16098811,0.00013699,2]
[405356825,1771072879415,500.0,0.00013273,2]
[405356826,1771072894721,5000.0,0.000198,2]
[405356827,1771072917693,1143.24866485,0.000198,2]
[405356828,1771072927515,500.0,0.00013273,2]
[405356829,1771072928083,500.0,0.00013273,2]
[405356830,1771072928132,570.17960241,0.00013821,2]
[405356831,1771072928575,300.0,0.00013673,2]
[405356832,1771072928824,500.66002311,0.00013699,2]
[405356833,1771072931423,500.0,0.00013273,2]
[405356834,1771072933664,500.0,0.00013273,2]
[405356835,1771072935933,174.36206775,0.00013699,2]
[405356836,1771072958227,349.3732621,0.00019547,2]
[405356837,1771072960818,399.28372812,0.00019547,2]
[405356838,1771072963346,191.84280167,0.00019306,2]
[405356839,1771072986242,507.47156642,0.00013273,2]
[405356840,1771073021218,270.4,0.000198,2]
[405356841,1771073044509,427.41348287,0.00019547,2]
[405356842,1771073110794,504.07845832,0.00013699,2]
[405356843,1771073112228,500.0,0.00013273,2]
[405356844,1771073120443,461.25437351,0.00013699,2]
[405356846,1771073170867,500.0,0.00013699,2]
[405356847,1771073170924,1000.0,0.00014247,2]
[405356848,1771073170983,1500.0,0.00014795,2]
[405356849,1771073190189,500.0,0.00013699,2]
[405356850,1771073192005,500.0,0.00013273,2]
[405356851,1771073192062,1000.0,0.00013821,2]
[405356854,1771073225532,2391.4598676,0.00019691,2]
[405356855,1771073231547,307.97659876,0.00013273,2]
[405356856,1771073281789,7978.2030322,0.00019616,2]
[405356857,1771073410446,502.26911408,0.00013273,2]
[405356858,1771073410676,151.18480401,0.00013699,2]
[405356859,1771073416457,1705.0545793,0.00019584,2]
[405356860,1771073417998,3299.09918071,0.000198,2]
[405356878,1771073432443,-164.04891235,0.00019949,2]
[405356879,1771073432453,-721.0,0.00019949,2]
[405356880,1771073432463,-150.0,0.00020046,2]
[405356881,1771073432473,-124.31096657,0.00020356,2]
[405356882,1771073432485,-42.35570009,0.00020356,2]
[405356883,1771073432494,-2178.98057711,0.0002051,2]
[405356939,1771073442084,-4757.82094456,0.0002051,2]
[405356940,1771073442097,-179.0,0.00020574,2]
[405356941,1771073442110,-1200.0,0.00020574,2]
[405356942,1771073442122,-500.0,0.00020574,2]
[405356943,1771073442131,-500.0,0.00020574,2]
[405356944,1771073442143,-163.35930634,0.00020574,2]
[405356945,1771073442152,-315.63194194,0.00020575,2]
[405356946,1771073442162,-568.13749549,0.00020575,2]
[405356947,1771073442172,-1010.02221421,0.00020575,2]
[405356948,1771073442182,-1578.1597097,0.00020575,2]
[405356949,1771073442193,-2270.27743199,0.00020575,2]
[405356950,1771073442204,-204.40902041,0.00020575,2]
[405356951,1771073442214,-367.93623674,0.00020575,2]
[405356952,1771073442226,-654.10886531,0.00020575,2]
[405356953,1771073442236,-1021.02305694,0.00020575,2]
[405356954,1771073442246,-19522.49973516,0.00020575,2]
[405356955,1771073442257,-3502.91266697,0.0002061,2]
[405356956,1771073442267,-505.8883265,0.0002072,2]
[405356957,1771073442276,-11377.6580142,0.0002072,2]
[405356958,1771073442287,-8578.5449234,0.0002072,2]
[405356959,1771073442296,-151.0,0.00020793,2]
[405356960,1771073442305,-500.0,0.00020819,2]
[405356961,1771073442314,-575.39502994,0.00020819,2]
[405356962,1771073442325,-300.76199071,0.00020888,2]
[405356963,1771073442335,-343.3842614,0.00020888,2]
[405356964,1771073442344,-11892.8259924,0.00020896,2]
[405356965,1771073442354,-151.0,0.00020896,2]
[405356966,1771073442364,-802.89457617,0.00020936,5]
[405356967,1771073442374,-604.19,0.0002098,3]
[405356968,1771073442385,-302.09,0.0002098,3]
[405356969,1771073442396,-151.05,0.0002098,3]
[405356970,1771073442406,-453.15,0.0002098,3]
[405356971,1771073442416,-623.1,0.0002098,10]
[405356972,1771073442426,-519.25,0.0002098,10]
[405356973,1771073442435,-432.71,0.0002098,10]
[405356974,1771073442444,-100000.0,0.0002099,2]
[405356975,1771073442454,-151.0,0.0002099,2]
[405356976,1771073442464,-151.0,0.0002099,2]
[405356977,1771073442473,-174.6228786,0.00021362,2]
[405356978,1771073442482,-181.33021542,0.000216,2]
[405356979,1771073442492,-510.0,0.00021612,2]
[405356980,1771073442501,-71345.44020463,0.00021613,2]
[405356981,1771073442513,-13990.0,0.00021613,2]
[405356982,1771073442524,-41657.5,0.00021613,2]
[405356996,1771073446868,-1163.079,0.00021613,2]
[405356998,1771073456781,500.0,0.00028,120]
[405356999,1771073457558,500.0,0.00028,120]
[405357000,1771073458335,500.0,0.00028,120]
[405357001,1771073459088,500.0,0.00028,120]
[405357002,1771073459855,500.0,0.00028,120]
[405357003,1771073460641,500.0,0.00028,120]
[405357004,1771073461423,500.0,0.00028,120]
[405357005,1771073462211,500.0,0.00028,120]
[405357006,1771073462986,551.7,0.00028,120]
[405357007,1771073469686,283.98518008,0.00013273,2]
[405357012,1771073623414,506.10234403,0.00027397,120]
[405357013,1771073776115,500.0,0.00013699,2]
[405357014,1771073777496,500.0,0.00013273,2]
[405357015,1771073836448,500.0,0.00013699,2]
[405357016,1771073836500,1000.0,0.00014247,2]
[405357017,1771073836558,694.54617722,0.00014795,2]
[405357018,1771073837321,500.0,0.00013699,2]
[405357019,1771073837514,500.0,0.00013273,2]
[405357020,1771073838583,500.0,0.00013699,2]
[405357021,1771073950197,264.68396126,0.00019794,2]
[405357022,1771074004760,200.0,0.000156,2]
[405357023,1771074005335,200.0,0.000156,2]
[405357024,1771074005898,200.0,0.000157,2]
[405357025,1771074006470,200.0,0.000157,2]
[405357026,1771074006939,200.0,0.000157,2]
[405357027,1771074007217,500.0,0.00013273,2]
[405357028,1771074007495,200.0,0.000158,2]
[405357029,1771074008078,200.0,0.000158,2]
[405357030,1771074008415,501.14381586,0.00013699,2]
[405357031,1771074008806,200.0,0.000158,2]
[405357032,1771074009444,200.0,0.000159,2]
[405357033,1771074009990,200.0,0.000159,2]
[405357034,1771074010562,200.0,0.000159,2]
[405357035,1771074011103,200.0,0.00016,2]
[405357036,1771074011663,200.0,0.00016,2]
[405357037,1771074012144,200.0,0.00016,2]
[405357038,1771074012256,1000.0,0.00014247,2]
[405357039,1771074012305,721.40863651,0.00014795,2]
[405357040,1771074012388,500.0,0.00013699,2]
[405357041,1771074012672,200.0,0.00016,2]
[405357042,1771074013256,200.0,0.000161,2]
[405357043,1771074013841,200.0,0.000161,2]
[405357044,1771074014310,200.0,0.000161,2]
[405357045,1771074014539,568.80677435,0.00013699,2]
[405357046,1771074014878,200.0,0.000162,2]
[405357047,1771074015433,200.0,0.000162,2]
[405357048,1771074016014,200.0,0.000162,2]
[405357049,1771074016631,200.0,0.000163,2]
[405357050,1771074017095,200.0,0.000163,2]
[405357051,1771074017575,200.0,0.000163,2]
[405357052,1771074018196,1490.2662999,0.00019556,2]
[405357053,1771074019389,500.0,0.00013699,2]
[405357054,1771074019716,200.0,0.000164,2]
[405357055,1771074020275,200.0,0.000164,2]
[405357056,1771074020778,200.0,0.000164,2]
[405357057,1771074021003,500.0,0.00013699,2]
[405357058,1771074021061,1000.0,0.00014247,2]
[405357059,1771074021155,200.0,0.000165,2]
[405357060,1771074021672,200.0,0.000165,2]
[405357061,1771074022253,200.0,0.000165,2]
[405357062,1771074022663,500.0,0.00013699,2]
[405357063,1771074022699,1000.0,0.00014247,2]
[405357064,1771074022728,200.0,0.000166,2]
[405357065,1771074022764,500.0,0.00014795,2]
[405357066,1771074023293,200.0,0.000166,2]
[405357067,1771074023777,200.0,0.000166,2]
[405357068,1771074023852,500.0,0.00013273,2]
[405357069,1771074024338,200.0,0.000167,2]
[405357070,1771074024821,200.0,0.000167,2]
[405357071,1771074025388,200.0,0.000167,2]
[405357072,1771074026143,200.0,0.000167,2]
[405357073,1771074026707,200.0,0.000168,2]
[405357074,1771074027309,200.0,0.000168,2]
[405357075,1771074027772,200.0,0.000168,2]
[405357076,1771074028256,200.0,0.000169,2]
[405357077,1771074028553,500.0,0.00013699,2]
[405357078,1771074028610,1000.0,0.00014247,2]